fUSD/lending_fUSD_20251212
["ID","MTS","AMOUNT","RATE_DAILY","PERIOD"]
[398291250,1765498231637,-250.0,0.00017,2]
[398291252,1765498231647,-54.28914531,0.00017999,2]
[398291254,1765498231662,-445.71085469,0.00017999,2]
[398291256,1765498231674,-254.45,0.000184,7]
[398291258,1765498231685,-152.55948543,0.0002,20]
[398291259,1765498231697,-178.93258,0.00021918,2]
[398291261,1765498231710,-121.06742,0.00021918,2]
[398291263,1765498231721,-480.8162296,0.00021918,2]
[398291265,1765498231731,-52.06447132,0.00023288,2]
[398291270,1765498231882,-247.93552868,0.00023288,2]
[398291271,1765498231891,-534.02511386,0.000241,2]
[398291276,1765498237654,-465.97488614,0.000241,2]
[398291277,1765498237664,-300.0,0.0002411,2]
[398291278,1765498237673,-300.0,0.00024658,3]
[398291279,1765498237686,-163.0,0.00024924,2]
[398291280,1765498237695,-439.0,0.00025124,2]
[398291281,1765498237705,-208.0,0.00025166,2]
[398291282,1765498237715,-88.82700236,0.00025507,5]
[398291283,1765498237726,-61.17299764,0.00025507,5]
[398291284,1765498237736,-317.0,0.00026027,3]
[398291285,1765498237746,-1253.02955847,0.00026319,2]
[398291286,1765498237757,-1103.16022683,0.00026319,2]
[398291287,1765498237766,-45.85959187,0.00027196,7]
[398291288,1765498237804,-105.14040813,0.00027196,7]
[398291289,1765498237813,-281.02459137,0.00027198,2]
[398291290,1765498237824,-218.97540863,0.00027198,2]
[398291291,1765498237834,-500.0,0.00027198,2]
[398291292,1765498237843,-500.0,0.00027198,2]
[398291293,1765498237853,-500.0,0.00027198,2]
[398291294,1765498237862,-500.0,0.00027198,2]
[398291295,1765498237872,-500.0,0.00027198,2]
[398291296,1765498237881,-500.0,0.00027198,2]
[398291297,1765498237891,-575.69450302,0.00027198,2]
[398291298,1765498237901,-316.71716954,0.00027198,2]
[398291299,1765498237910,-500.0,0.00027198,2]
[398291300,1765498237920,-500.0,0.00027198,2]
[398291301,1765498237930,-500.0,0.00027198,2]
[398291302,1765498237939,-500.0,0.00027198,2]
[398291303,1765498237949,-500.0,0.00027198,2]
[398291304,1765498237958,-500.0,0.00027198,2]
[398291305,1765498237968,-500.0,0.00027198,2]
[398291307,1765498237977,-500.0,0.00027198,2]
[398291309,1765498237986,-500.0,0.00027198,2]
[398291311,1765498237995,-500.0,0.00027198,2]
[398291313,1765498238005,-500.0,0.00027198,2]
[398291315,1765498238014,-12306.69629096,0.00027199,2]
[398291319,1765498238041,-16626.82370904,0.00027199,2]
[398291321,1765498238050,-3034.37364008,0.00027199,2]
[398291323,1765498238061,-1008.93843287,0.00027199,2]
[398291325,1765498238072,-2364.81478464,0.00027199,2]
[398291327,1765498238083,-316.95494386,0.00027199,2]
[398291330,1765498238095,-1142.86819855,0.00027199,2]
[398291332,1765498238104,-1083.03757689,0.00027199,2]
[398291339,1765498238163,-3257.28895896,0.00027199,2]
[398291342,1765498238174,-1880.91159741,0.00027199,2]
[398291345,1765498238197,-1520.82186674,0.00027199,2]
[398291347,1765498238209,-1000.0,0.000281,2]
[398291348,1765498238219,-1000.0,0.00028213,120]
[398291350,1765498238229,-1000.0,0.00028321,120]
[398291353,1765498238239,-1000.0,0.00028321,30]
[398291354,1765498238248,-1000.0,0.00028321,30]
[398291357,1765498238258,-434.20087332,0.00028321,30]
[398291359,1765498238270,-565.79912668,0.00028321,30]
[398291361,1765498238280,-832.38554137,0.00028321,30]
[398291370,1765498240273,-167.61445863,0.00028321,30]
[398291371,1765498240283,-500.0,0.00028483,2]
[398291372,1765498240293,-151.0,0.00028483,2]
[398291373,1765498240302,-151.0,0.00028483,2]
[398291374,1765498240313,-151.0,0.00028483,2]
[398291375,1765498240323,-432.56378941,0.000285,14]
[398291376,1765498240388,-330.80621059,0.000285,14]
[398291377,1765498240398,-148.34234836,0.00029296,2]
[398291378,1765498240410,-467.805,0.00029296,2]
[398291379,1765498240422,-588.0,0.00029296,2]
[398291380,1765498240434,-394.38842953,0.00029296,2]
[398291381,1765498240448,-273.89681752,0.00029296,2]
[398291382,1765498240504,-483.75718989,0.00029296,2]
[398291383,1765498240524,-166.66,0.00029746,30]
[398291384,1765498240544,-500.0,0.00029862,14]
[398291385,1765498240560,-150.0,0.0002987,2]
[398291386,1765498240578,-616.63799319,0.00029954,2]
[398291387,1765498240658,-4383.36200681,0.00029954,2]
[398291388,1765498240675,-1011.0,0.00030137,60]
[398291389,1765498240690,-166.66,0.00030372,30]
[398291390,1765498240710,-150.0,0.00030421,3]
[398291391,1765498240722,-150.0,0.00030421,3]
[398291392,1765498240738,-150.0,0.00030421,3]
[398291393,1765498240752,-725.0,0.00030421,3]
[398291394,1765498240771,-150.0,0.00030421,2]
[398291395,1765498240786,-999.0,0.00030421,3]
[398291396,1765498240801,-278.46,0.00030427,2]
[398291397,1765498240815,-172.0,0.00030515,120]
[398291398,1765498240831,-176.0,0.00030515,120]
[398291399,1765498240846,-257.0,0.00030515,120]
[398291400,1765498240860,-171.84,0.00030538,2]
[398291401,1765498240875,-43.01192926,0.00030558,3]
[398291402,1765498240894,-106.98807074,0.00030558,3]
[398291403,1765498240908,-150.0,0.00030558,3]
[398291404,1765498240923,-150.0,0.00030558,3]
[398291405,1765498240937,-725.0,0.00030558,3]
[398291406,1765498240953,-150.0,0.00030695,3]
[398291407,1765498240967,-150.0,0.00030695,3]
[398291408,1765498240983,-200.0,0.00030695,3]
[398291409,1765498240997,-725.0,0.00030695,3]
[398291410,1765498241012,-1040.3,0.00030769,120]
[398291411,1765498241026,-150.0,0.00030769,30]
[398291412,1765498241041,-150.0,0.00030769,60]
[398291413,1765498241056,-150.0,0.00030769,60]
[398291414,1765498241070,-150.0,0.00030769,2]
[398291415,1765498241085,-150.0,0.00030769,2]
[398291416,1765498241101,-150.0,0.00030769,60]
[398291417,1765498241116,-150.0,0.00030769,60]
[398291418,1765498241130,-150.0,0.00030769,60]
[398291419,1765498241145,-150.0,0.00030769,2]
[398291420,1765498241159,-150.0,0.00030769,60]
[398291421,1765498241173,-150.0,0.00030769,60]
[398291422,1765498241188,-233.30890611,0.00030769,60]
[398291423,1765498241206,-266.69109389,0.00030769,60]
[398291424,1765498241221,-150.0,0.00030769,60]
[398291425,1765498241238,-150.0,0.00030832,3]
[398291426,1765498241254,-200.0,0.00030832,3]
[398291427,1765498241269,-192.79423372,0.00030832,3]
[398291446,1765498242846,-301.0,0.00027657,2]
[398291447,1765498242855,-532.20576628,0.00030832,3]
[398291448,1765498242864,-150.0,0.00030906,30]
[398291449,1765498242873,-150.0,0.00030906,60]
[398291450,1765498242886,-150.0,0.00030906,60]
[398291451,1765498242896,-150.0,0.00030906,60]
[398291452,1765498242905,-150.0,0.00030906,60]
[398291453,1765498242915,-500.0,0.00030906,60]
[398291454,1765498242924,-150.0,0.00030969,3]
[398291455,1765498242934,-725.0,0.00030969,3]
[398291456,1765498242944,-166.66,0.00030999,30]
[398291457,1765498242953,-202.83304397,0.00031043,30]
[398291458,1765498242963,-250.0,0.00031043,60]
[398291459,1765498242973,-200.0,0.00031043,60]
[398291460,1765498242982,-200.0,0.00031043,60]
[398291461,1765498242992,-200.0,0.00031043,60]
[398291462,1765498243002,-500.0,0.00031043,60]
[398291463,1765498243011,-250.0,0.00031106,3]
[398291464,1765498243021,-725.0,0.00031106,3]
[398291465,1765498243032,-151.0,0.00031137,7]
[398291466,1765498243041,-230.94372165,0.00031139,2]
[398291467,1765498243051,-465.4609036,0.00031139,2]
[398291468,1765498243061,-240.05159655,0.00031139,2]
[398291469,1765498243070,-249.48934664,0.00031139,2]
[398291470,1765498243080,-18689.65,0.0003114,2]
[398291471,1765498243090,-500.0,0.0003118,60]
[398291472,1765498243100,-725.0,0.00031243,3]
[398291473,1765498243110,-500.0,0.00031317,60]
[398291474,1765498243119,-1000.0,0.0003138,2]
[398291475,1765498243128,-725.0,0.0003138,3]
[398291476,1765498243139,-500.0,0.00031454,60]
[398291477,1765498243149,-725.0,0.00031517,3]
[398291478,1765498243158,-278.46,0.00031569,2]
[398291479,1765498243168,-585.42311603,0.00031591,60]
[398291480,1765498243179,-166.66,0.00031625,30]
[398291481,1765498243188,-725.0,0.00031654,3]
[398291482,1765498243198,-725.0,0.00031791,3]
[398291483,1765498243208,-2317.39868004,0.000319,2]
[398291484,1765498243217,-725.0,0.00031928,3]
[398291485,1765498243227,-200.0,0.0003197,2]
[398291486,1765498243237,-151.0,0.00031997,7]
[398291487,1765498243248,-500.0,0.00031999,30]
[398291488,1765498243262,-500.0,0.00031999,30]
[398291489,1765498243272,-500.0,0.00031999,30]
[398291490,1765498243282,-500.0,0.00031999,40]
[398291491,1765498243292,-500.0,0.00031999,40]
[398291492,1765498243302,-500.0,0.00031999,40]
[398291493,1765498243312,-500.0,0.00031999,40]
[398291494,1765498243321,-500.0,0.00031999,40]
[398291495,1765498243331,-500.0,0.00031999,40]
[398291496,1765498243341,-500.0,0.00031999,40]
[398291497,1765498243352,-500.0,0.00031999,40]
[398291498,1765498243362,-500.0,0.00031999,40]
[398291499,1765498243372,-500.0,0.00031999,45]
[398291500,1765498243382,-500.0,0.00031999,45]
[398291501,1765498243392,-500.0,0.00031999,45]
[398291502,1765498243401,-500.0,0.00031999,45]
[398291503,1765498243411,-500.0,0.00031999,45]
[398291504,1765498243421,-500.0,0.00031999,45]
[398291505,1765498243431,-500.0,0.00031999,45]
[398291506,1765498243441,-500.0,0.00031999,45]
[398291507,1765498243454,-500.0,0.00031999,45]
[398291508,1765498243464,-500.0,0.00031999,45]
[398291509,1765498243473,-500.0,0.00031999,45]
[398291510,1765498243483,-500.0,0.00031999,45]
[398291511,1765498243494,-500.0,0.00031999,45]
[398291512,1765498243503,-500.0,0.00031999,45]
[398291513,1765498243513,-500.0,0.00031999,45]
[398291514,1765498243524,-500.0,0.00031999,45]
[398291515,1765498243534,-500.0,0.00031999,45]
[398291516,1765498243544,-500.0,0.00031999,45]
[398291517,1765498243554,-500.0,0.00031999,45]
[398291518,1765498243564,-500.0,0.00031999,45]
[398291519,1765498243574,-500.0,0.00031999,45]
[398291520,1765498243584,-500.0,0.00031999,45]
[398291521,1765498243594,-500.0,0.00031999,45]
[398291522,1765498243604,-500.0,0.00031999,45]
[398291523,1765498243615,-500.0,0.00031999,45]
[398291524,1765498243625,-500.0,0.00031999,45]
[398291525,1765498243635,-500.0,0.00031999,45]
[398291526,1765498243645,-500.0,0.00031999,45]
[398291527,1765498243654,-500.0,0.00031999,45]
[398291528,1765498243665,-500.0,0.00031999,45]
[398291529,1765498243675,-500.0,0.00031999,45]
[398291530,1765498243684,-500.0,0.00031999,45]
[398291531,1765498243694,-500.0,0.00031999,45]
[398291532,1765498243704,-500.0,0.00031999,45]
[398291533,1765498243713,-500.0,0.00031999,45]
[398291534,1765498243722,-500.0,0.00031999,45]
[398291535,1765498243732,-500.0,0.00031999,45]
[398291536,1765498243742,-500.0,0.00031999,45]
[398291537,1765498243752,-500.0,0.00031999,45]
[398291538,1765498243761,-500.0,0.00031999,45]
[398291539,1765498243771,-500.0,0.00031999,45]
[398291540,1765498243780,-500.0,0.00031999,45]
[398291541,1765498243790,-500.0,0.00031999,45]
[398291542,1765498243800,-500.0,0.00031999,45]
[398291543,1765498243809,-500.0,0.00031999,45]
[398291544,1765498243819,-500.0,0.00031999,45]
[398291545,1765498243828,-500.0,0.00031999,45]
[398291546,1765498243837,-500.0,0.00031999,45]
[398291547,1765498243847,-500.0,0.00031999,45]
[398291548,1765498243856,-500.0,0.00031999,45]
[398291549,1765498243866,-500.0,0.00031999,45]
[398291550,1765498243875,-500.0,0.00031999,45]
[398291551,1765498243885,-500.0,0.00031999,45]
[398291552,1765498243895,-500.0,0.00031999,45]
[398291553,1765498243904,-500.0,0.00031999,45]
[398291554,1765498243913,-500.0,0.00031999,45]
[398291555,1765498243923,-500.0,0.00031999,45]
[398291556,1765498243932,-500.0,0.00031999,45]
[398291557,1765498243942,-500.0,0.00031999,45]
[398291558,1765498243951,-500.0,0.00031999,45]
[398291559,1765498243960,-500.0,0.00031999,45]
[398291560,1765498243969,-500.0,0.00031999,45]
[398291561,1765498243978,-211.32874541,0.00032,120]
[398291562,1765498243988,-178.84196588,0.00032,120]
[398291563,1765498243997,-500.0,0.00032,45]
[398291564,1765498244007,-500.0,0.00032,45]
[398291565,1765498244016,-500.0,0.00032,45]
[398291566,1765498244025,-500.0,0.00032,45]
[398291567,1765498244034,-172.0,0.00032041,120]
[398291568,1765498244043,-257.0,0.00032041,120]
[398291569,1765498244053,-725.0,0.00032065,3]
[398291570,1765498244062,-725.0,0.00032202,3]
[398291571,1765498244072,-1186.76,0.00032205,2]
[398291572,1765498244083,-166.66,0.00032251,30]
[398291573,1765498244092,-151.0,0.00032273,31]
[398291574,1765498244102,-2356.1897853,0.00032273,2]
[398291575,1765498244111,-725.0,0.00032339,3]
[398291576,1765498244121,-151.0,0.00032409,31]
[398291577,1765498244130,-236.536252,0.00032409,31]
[398291578,1765498244140,-236.536252,0.00032409,31]
[398291579,1765498244149,-236.536252,0.00032409,31]
[398291580,1765498244159,-236.536252,0.00032409,31]
[398291581,1765498244168,-725.0,0.00032476,3]
[398291582,1765498244178,-725.0,0.00032613,3]
[398291583,1765498244187,-2751.0,0.00032677,120]
[398291584,1765498244197,-278.46,0.0003271,2]
[398291585,1765498244206,-725.0,0.0003275,3]
[398291586,1765498244215,-272.66090676,0.00032777,2]
[398291587,1765498244225,-7114.18173138,0.00032777,2]
[398291588,1765498244234,-1082.50177315,0.00032777,2]
[398291589,1765498244244,-1326.64798934,0.00032867,3]
[398291590,1765498244253,-1376.14,0.00032867,2]
[398291591,1765498244263,-151.0,0.00032874,14]
[398291592,1765498244272,-151.0,0.00032874,14]
[398291593,1765498244282,-1036.83747208,0.00032876,15]
[398291594,1765498244292,-500.0,0.00032876,30]
[398291595,1765498244308,-509.39630906,0.00032876,30]
[398291596,1765498244318,-562.09588733,0.00032876,30]
[398291597,1765498244327,-576.73253495,0.00032876,30]
[398291598,1765498244337,-511.15337826,0.00032876,30]
[398291599,1765498244347,-2620.66,0.00032876,30]
[398291600,1765498244356,-2620.66,0.00032876,30]
[398291601,1765498244366,-1000.0,0.00032876,3]
[398291602,1765498244375,-726.158057,0.00032876,31]
[398291603,1765498244384,-726.158057,0.00032876,31]
[398291604,1765498244393,-726.158057,0.00032876,31]
[398291605,1765498244403,-726.158057,0.00032876,31]
[398291606,1765498244412,-726.158057,0.00032876,31]
[398291607,1765498244422,-395.35546048,0.00032877,2]
[398291608,1765498244431,-609.848344,0.00032877,31]
[398291609,1765498244442,-609.848344,0.00032877,31]
[398291610,1765498244453,-609.848344,0.00032877,31]
[398291611,1765498244462,-609.848344,0.00032877,31]
[398291612,1765498244471,-151.0,0.00032877,31]
[398291613,1765498244481,-151.0,0.00032877,31]
[398291614,1765498244491,-374.94789,0.00032877,31]
[398291615,1765498244500,-151.0,0.00032877,31]
[398291616,1765498244510,-374.94789,0.00032877,31]
[398291617,1765498244519,-374.94789,0.00032877,31]
[398291618,1765498244529,-1615.220461,0.00032877,31]
[398291619,1765498244539,-374.94789,0.00032877,31]
[398291620,1765498244550,-1615.220461,0.00032877,31]
[398291621,1765498244560,-1615.220461,0.00032877,31]
[398291622,1765498244569,-1615.220461,0.00032877,31]
[398291623,1765498244579,-151.0,0.00032877,31]
[398291624,1765498244589,-151.0,0.00032877,31]
[398291625,1765498244599,-151.0,0.00032877,31]
[398291626,1765498244608,-151.0,0.00032877,31]
[398291627,1765498244618,-151.0,0.00032877,31]
[398291628,1765498244628,-151.0,0.00032877,31]
[398291629,1765498244637,-151.0,0.00032877,31]
[398291630,1765498244647,-262.060466,0.00032877,31]
[398291631,1765498244656,-287.474632,0.00032877,31]
[398291632,1765498244666,-262.060466,0.00032877,31]
[398291633,1765498244675,-262.060466,0.00032877,31]
[398291634,1765498244685,-262.060466,0.00032877,31]
[398291635,1765498244695,-151.0,0.00032877,31]
[398291636,1765498244704,-287.474632,0.00032877,31]
[398291637,1765498244714,-151.0,0.00032877,31]
[398291638,1765498244723,-152.124,0.00032877,31]
[398291639,1765498244732,-287.474632,0.00032877,31]
[398291640,1765498244741,-657.895936,0.00032877,31]
[398291641,1765498244750,-287.474632,0.00032877,31]
[398291642,1765498244760,-657.895936,0.00032877,31]
[398291643,1765498244769,-657.895936,0.00032877,31]
[398291644,1765498244779,-657.895936,0.00032877,31]
[398291645,1765498244789,-151.0,0.00032877,31]
[398291646,1765498244798,-164.910887,0.00032877,31]
[398291647,1765498244808,-151.0,0.00032877,31]
[398291648,1765498244817,-164.910887,0.00032877,31]
[398291649,1765498244827,-164.910887,0.00032877,31]
[398291650,1765498244836,-151.0,0.00032877,31]
[398291651,1765498244846,-164.910887,0.00032877,31]
[398291652,1765498244855,-199.317589,0.00032877,31]
[398291653,1765498244865,-199.317589,0.00032877,31]
[398291654,1765498244875,-199.317589,0.00032877,31]
[398291655,1765498244885,-168.616855,0.00032877,31]
[398291656,1765498244895,-464.845228,0.00032877,31]
[398291657,1765498244904,-199.317589,0.00032877,31]
[398291658,1765498244914,-168.616855,0.00032877,31]
[398291659,1765498244924,-464.845228,0.00032877,31]
[398291660,1765498244933,-168.616855,0.00032877,31]
[398291661,1765498244943,-464.845228,0.00032877,31]
[398291662,1765498244953,-168.616855,0.00032877,31]
[398291663,1765498244963,-464.845228,0.00032877,31]
[398291664,1765498244972,-432.199447,0.00032877,31]
[398291665,1765498244981,-432.199447,0.00032877,31]
[398291666,1765498244991,-432.199447,0.00032877,31]
[398291667,1765498245000,-151.0,0.00032877,31]
[398291668,1765498245009,-432.199447,0.00032877,31]
[398291669,1765498245019,-151.0,0.00032877,31]
[398291670,1765498245028,-151.0,0.00032877,31]
[398291671,1765498245038,-151.0,0.00032877,31]
[398291672,1765498245047,-151.0,0.00032877,31]
[398291673,1765498245056,-151.0,0.00032877,31]
[398291674,1765498245066,-53.40437881,0.00032877,31]
[398291704,1765498246165,-267.44,0.00031991,2]
[398291706,1765498246175,-97.59562119,0.00032877,31]
[398291707,1765498246184,-130.9517042,0.00032877,31]
[398291760,1765498953914,340.11,0.00013699,2]
[398291761,1765499192912,150.0,0.00015344,2]
[398291762,1765499218495,500.0,0.00025,120]
[398291777,1765499431621,-334.2368,0.000164,2]
[398291779,1765499431744,-2542.81382997,0.000164,2]
[398291780,1765499431804,-122.94937003,0.000164,2]
[398291781,1765499431815,-288.0,0.000164,2]
[398291782,1765499431825,-175.077167,0.00016999,2]
[398291783,1765499431835,-500.0,0.00016999,2]
[398291784,1765499431845,-500.0,0.00016999,2]
[398291785,1765499431855,-403.90178717,0.00016999,2]
[398291786,1765499431865,-14521.04753872,0.00017,2]
[398291797,1765499437767,-305.9892,0.00017,2]
[398291798,1765499437796,-24845.04712779,0.00017,2]
[398291799,1765499437808,-293.61604338,0.00017,2]
[398291824,1765499439793,-2243.60294719,0.00017,2]
[398291826,1765499440201,-1994.3,0.00017,2]
[398291827,1765499440213,-1877.68199999,0.00017,2]
[398291833,1765499442809,-2571.67856,0.00017,2]
[398291834,1765499442820,-1208.0,0.00017,2]
[398291835,1765499442832,-727.45672583,0.00017,2]
[398291836,1765499442843,-488.750531,0.00017,2]
[398291837,1765499442883,-328.26696821,0.00017,2]
[398291838,1765499442897,-5430.15412827,0.00017,2]
[398291839,1765499442947,-803.00093127,0.00017,2]
[398291840,1765499443120,-9144.89886364,0.00017,2]
[398291841,1765499443132,-507.20615774,0.00017,2]
[398291842,1765499443143,-872.68780708,0.00017,2]
[398291844,1765499443203,-8843.90410635,0.00017,2]
[398291846,1765499443213,-249.48934664,0.00017999,2]
[398291847,1765499443223,-230.94372165,0.00017999,2]
[398291848,1765499443233,-465.4609036,0.00017999,2]
[398291849,1765499443242,-240.05159655,0.00017999,2]
[398291850,1765499443252,-14547.62360982,0.00018,2]
[398291859,1765499445706,-739.94,0.00018,2]
[398291860,1765499445780,-900.862616,0.00018,2]
[398292099,1765499480258,500.0,0.00025,120]
[398292101,1765500546263,-5401.909744,0.00016498,2]
[398292109,1765500631841,-600.0,0.00016438,2]
[398292135,1765500640068,-200.0,0.00016438,2]
[398292136,1765500640078,-152.710256,0.00016498,2]
[398292137,1765500640088,-54.246654,0.00017534,2]
[398292138,1765500640275,-1545.753346,0.00017534,2]
[398292139,1765500640286,-215.0738,0.00017792,2]
[398292140,1765500640296,-311.1,0.00017792,2]
[398292141,1765500640306,-151.0,0.000178,2]
[398292142,1765500640316,-510.0,0.00017802,2]
[398292143,1765500640325,-1200.0,0.00017802,2]
[398292144,1765500640335,-1058.2591832,0.00017803,2]
[398292145,1765500640345,-80913.0528678,0.00017803,2]
[398292146,1765500640354,-2356.1897856,0.00017803,2]
[398292147,1765500640365,-2356.1897853,0.00017803,2]
[398292148,1765500640376,-507.99536832,0.00017982,2]
[398292150,1765500640386,-151.0,0.00017997,2]
[398292151,1765500640396,-151.0,0.00017997,2]
[398292152,1765500640407,-151.0,0.00017997,2]
[398292153,1765500640417,-1036.83747208,0.00017999,5]
[398292154,1765500640427,-1000.0,0.00017999,2]
[398292155,1765500640436,-235.58028119,0.00017999,2]
[398292156,1765500640446,-161.66060515,0.00017999,2]
[398292157,1765500640456,-618.72987189,0.00017999,2]
[398292158,1765500640466,-53434.53196514,0.00018,2]
[398292159,1765500640476,-272.66090676,0.00018,2]
[398292160,1765500640485,-6942.43678,0.00018,2]
[398292161,1765500640495,-2334.00908336,0.00018804,2]
[398292162,1765500640504,-151.0,0.00018962,2]
[398292163,1765500640513,-479.0,0.00018965,2]
[398292164,1765500640523,-171.84,0.00019037,2]
[398292165,1765500640533,-1000.0,0.00019081,2]
[398292166,1765500640542,-2751.0,0.0001911,2]
[398292167,1765500640552,-999.0,0.00019229,3]
[398292168,1765500640566,-1186.76,0.00019291,2]
[398292169,1765500640577,-200.0,0.00019333,2]
[398292170,1765500640587,-225.54,0.00019377,2]
[398292171,1765500640597,-480.0,0.00019524,2]
[398292172,1765500640607,-152.67,0.000197,7]
[398292173,1765500640619,-151.86,0.00019711,2]
[398292174,1765500640629,-151.31,0.00019743,2]
[398292175,1765500640639,-150.09,0.00019873,2]
[398292176,1765500640648,-688.07,0.00019877,2]
[398292177,1765500640658,-151.0,0.00019884,2]
[398292178,1765500640668,-500.0,0.00019886,2]
[398292179,1765500640677,-562.09588733,0.00019886,2]
[398292180,1765500640688,-80913.0528678,0.00019887,2]
[398292181,1765500640697,-151.0,0.00019887,2]
[398292182,1765500640706,-151.0,0.00019887,2]
[398292183,1765500640716,-297.675303,0.00019887,2]
[398292184,1765500640726,-213.411502,0.00019887,2]
[398292185,1765500640736,-151.0,0.00019887,2]
[398292186,1765500640746,-151.0,0.00019887,2]
[398292187,1765500640755,-151.0,0.00019887,2]
[398292188,1765500640765,-151.0,0.00019887,2]
[398292189,1765500640776,-151.0,0.00019887,2]
[398292190,1765500640786,-411.319007,0.00019887,2]
[398292191,1765500640795,-411.319007,0.00019887,2]
[398292192,1765500640804,-411.319007,0.00019887,2]
[398292193,1765500640816,-411.319007,0.00019887,2]
[398292194,1765500640825,-151.0,0.00019887,2]
[398292195,1765500640835,-151.0,0.00019887,2]
[398292196,1765500640845,-1201.682437,0.00019887,2]
[398292197,1765500640855,-1201.682437,0.00019887,2]
[398292198,1765500640864,-1201.682437,0.00019887,2]
[398292199,1765500640874,-1201.682437,0.00019887,2]
[398292200,1765500640884,-151.0,0.00019887,2]
[398292201,1765500640894,-151.0,0.00019887,2]
[398292202,1765500640903,-151.0,0.00019887,2]
[398292203,1765500640913,-151.0,0.00019887,2]
[398292204,1765500640922,-151.0,0.00019887,2]
[398292205,1765500640932,-208.703674,0.00019887,2]
[398292206,1765500640942,-151.0,0.00019887,2]
[398292207,1765500640952,-151.0,0.00019887,2]
[398292208,1765500640961,-151.0,0.00019887,2]
[398292209,1765500640975,-187.666979,0.00019887,2]
[398292210,1765500640985,-151.0,0.00019887,2]
[398292211,1765500640994,-500.0,0.00019897,2]
[398292212,1765500641014,-1058.2591832,0.00019897,2]
[398292213,1765500641041,-197.30401532,0.00019996,2]
[398292214,1765500641060,-576.73253495,0.00019999,2]
[398292215,1765500641080,-2641.5,0.00019999,2]
[398292216,1765500641103,-350.98121731,0.0002,20]
[398292217,1765500641120,-1331.22858914,0.0002,14]
[398292218,1765500641139,-414.88167848,0.0002,2]
[398292219,1765500641160,-6942.43679,0.0002,2]
[398292220,1765500641179,-500.0,0.00020171,2]
[398292221,1765500641198,-340.11,0.00020187,2]
[398292222,1765500641219,-289.64,0.00020208,2]
[398292223,1765500641242,-151.64,0.00020394,2]
[398292224,1765500641257,-500.0,0.00020445,2]
[398292225,1765500641276,-500.0,0.00020993,2]
[398292226,1765500641288,-529.60667962,0.00021267,2]
[398292227,1765500641307,-2334.00908332,0.00021368,2]
[398292228,1765500641321,-1000.0,0.00021467,2]
[398292229,1765500641336,-151.0,0.00021467,2]
[398292230,1765500641365,-151.0,0.00021467,2]
[398292231,1765500641390,-151.0,0.00021467,2]
[398292232,1765500641411,-151.0,0.00021467,2]
[398292233,1765500641427,-151.0,0.00021871,2]
[398292234,1765500641444,-151.0,0.00021871,2]
[398292235,1765500641461,-151.0,0.00021871,2]
[398292236,1765500641478,-151.0,0.00021918,2]
[398292237,1765500641494,-151.0,0.0002197,2]
[398292238,1765500641511,-151.0,0.0002197,2]
[398292239,1765500641525,-411.319007,0.0002197,2]
[398292240,1765500641541,-411.319007,0.0002197,2]
[398292241,1765500641557,-411.319007,0.0002197,2]
[398292242,1765500641571,-411.319007,0.0002197,2]